[Event "13th Chennai Open 2022"]
[Site "Chennai"]
[Date "2022.06.23"]
[Round "7.1"]
[White "Nitin, S.."]
[Black "Vignesh B"]
[Result "1-0"]
[ECO "A08"]
[WhiteElo "2399"]
[BlackElo "2072"]
[Annotator "TA"]
[PlyCount "203"]
[EventDate "2022.06.19"]
[EventType "swiss"]
[EventCountry "IND"]
[SourceTitle "playchess.com"]
[Source "ChessBase"]
[SourceQuality "1"]
[TimeControl "5400+30"]

{[%evp 17,203,13,13,-19,-20,-24,0,-16,19,18,35,27,44,42,26,4,9,0,0,0,0,0,0,0,0,-23,26,31,62,49,52,50,55,57,70,68,66,67,70,64,75,68,89,83,91,88,88,78,116,109,100,93,139,113,128,119,135,143,231,138,164,91,181,163,119,64,255,97,109,62,214,145,144,61,246,0,139,61,343,343,343,142,343,58,67,0,332,100,97,88,182,160,153,154,151,143,143,80,85,80,212,209,194,194,194,140,411,159,177,133,198,198,252,259,600,382,377,278,573,566,569,548,547,471,428,200,200,142,147,0,198,198,398,220,298,298,397,370,427,348,428,405,411,415,479,415,477,470,768,395,372,0,521,488,563,516,781,760,1131,1131,885,885,737,727,727,723,3514,3313,1980,1990,1779,1779,1660,1608,1597,1435,1560,1431,29978,29979,29979,29980,29980,29981,29981,29982,29983,29982]} 1. g3 {[%emt 0:00:33]} Nf6 {[%emt 0:00:58]} 2. Bg2 {[%emt 0:00:19]} d5 {[%emt 0:00:21]} 3. Nf3 {[%emt 0:01:02]} g6 {[%emt 0:03:09]} 4. O-O {[%emt 0:04:50]} Bg7 {[%emt 0:00:06]} 5. d3 {[%emt 0:00:08]} O-O {[%emt 0:00:12]} 6. Nbd2 {[%emt 0:00:12]} c5 {[%emt 0:01:18]} 7. e4 {[%emt 0:00:10]} Nc6 {[%emt 0:01:36]} 8. Re1 {[%emt 0:02:31]} e5 {[%emt 0:00:38]} 9. exd5 {[%emt 0:00:39]} Nxd5 {[%emt 0:00:10]} 10. a3 {[%emt 0:01:22] A08: King's Indian Attack.} b6 {[%emt 0:06:23]} 11. Rb1 {[%emt 0:01:07] [#]} f6 $146 {[%emt 0:01:37]} ({Predecessor:} 11... Bb7 12. h4 Qd7 13. h5 Rae8 14. hxg6 hxg6 15. Ne4 Nc7 16. Nh4 Ne6 17. b4 cxb4 18. axb4 {1-0 (52) Pachow,J (2290)-Zieher,H (2230) Germany 1996}) 12. c4 {[%emt 0:10:26] aiming for Nxe5. The position is equal.} Nde7 {[%emt 0:04:02]} 13. b4 $1 {[%emt 0:00:50]} Bf5 {[%emt 0:11:10]} (13... Qxd3 14. b5 $14) 14. Ne4 {[%emt 0:03:34]} Bxe4 {[%emt 0:14:38]} 15. Rxe4 {[%emt 0:04:34]} Qd6 {[%emt 0:01:29]} 16. b5 {[%emt 0:03:26]} Nd8 {[%emt 0:14:30]} 17. Bb2 {[%emt 0:13:56]} Ne6 {[%emt 0:01:16]} 18. Qc2 {[%emt 0:02:10]} Rad8 {[%emt 0:03:35]} 19. Rd1 {[%emt 0:02:29]} Qc7 {[%emt 0:09:47]} 20. a4 {[%emt 0:04:44]} Rd6 {[%emt 0:00:35]} 21. Nh4 {[%emt 0:05:59]} Rfd8 {[%emt 0:03:16]} (21... Qd7 {should be considered.}) 22. f4 $11 {[%emt 0:05:57]} Nd4 {[%emt 0:04:21]} 23. Bxd4 {[%emt 0:00:34]} Rxd4 {[%emt 0:00:06]} 24. Rxd4 {[%emt 0:02:24]} Rxd4 {[%emt 0:03:21]} 25. fxe5 {[%emt 0:03:25]} fxe5 {[%emt 0:03:30]} (25... Qxe5 $2 26. Nf3 Qd6 27. Nxd4 Qxd4+ 28. Kh1 $18) 26. Be4 {[%emt 0:00:32]} Rd8 {[%emt 0:01:01]} 27. a5 {[%emt 0:03:21]} Qd6 {[%emt 0:05:07]} 28. axb6 {[%emt 0:03:51]} axb6 {[%emt 0:00:02]} 29. Rf1 {[%emt 0:00:21]} Rf8 {[%emt 0:00:29]} 30. Rxf8+ {[%emt 0:00:19]} Kxf8 {[%emt 0:00:28]} 31. Nf3 {[%emt 0:00:12]} Bf6 {[%emt 0:02:32]} 32. Qa4 {[%emt 0:00:13]} Nf5 {[%emt 0:00:39]} 33. Qa8+ {[%emt 0:01:05]} Kg7 {[%emt 0:00:03]} 34. Qb7+ {[%emt 0:00:45]} Ne7 {[%emt 0:01:47]} (34... Be7 $142) 35. Kf1 {[%emt 0:03:46]} h5 {[%emt 0:00:32]} 36. Ke2 {[%emt 0:00:57]} Qe6 {[%emt 0:02:59]} 37. Qc7 {[%emt 0:00:11]} Kh6 {[%emt 0:00:13]} (37... h4 $16 38. gxh4 Kh6) 38. Kf2 {[%emt 0:02:22]} (38. h4 $1 $18) 38... h4 {[%emt 0:00:59]} 39. gxh4 {[%emt 0:02:38]} (39. g4 $18 Bg5 40. h3 (40. Qxe5 Qxe5 41. Nxe5 Bf4 $16)) 39... Kg7 {[%emt 0:00:32]} (39... Kh5 $16) 40. Ke2 {[%emt 0:05:01]} Kh6 {[%emt 0:00:20]} 41. Kd2 {[%emt 0:01:15]} (41. h3 $16) 41... Kg7 $2 {[%emt 0:00:35]} (41... Kh5 $1 $14) 42. Kc2 $2 {[%emt 0:00:35]} (42. Ng5 $18 Qg4 43. Nf3) 42... Kh6 $16 {[%emt 0:00:34]} 43. Kb3 {[%emt 0:00:33]} (43. Qb8 $16) 43... Kg7 $2 {[%emt 0:00:25]} (43... Bg7 $14) 44. h3 {[%emt 0:01:49]} Kh6 {[%emt 0:00:34] Inhibits Ng5.} 45. Qb8 {[%emt 0:00:08]} ({White should play} 45. Nh2 $16) 45... Nc8 $2 {[%emt 0:00:33]} ({Black should try} 45... Bg7 $14) 46. Qc7 {[%emt 0:01:23]} (46. Qa8 $18) 46... Ne7 {[%emt 0:00:01]} 47. Ka3 {[%emt 0:00:47]} (47. Nh2 $16) 47... Nf5 $2 {[%emt 0:00:59][%mdl 8192]} (47... Bg7 $1 $14) 48. Qc6 $18 {[%emt 0:00:48]} Nd6 {[%emt 0:00:24]} 49. Ka4 {[%emt 0:00:46]} (49. Bd5 Qf5 50. Qxd6 Qf4 $18) (49. Kb3 $18 {has better winning chances.}) 49... Bd8 {[%emt 0:00:34]} (49... Qxh3 $16 50. Qxd6 Qf1) 50. Bd5 $2 {[%emt 0:00:42]} (50. Ng5 $1 $18 {[%cal Rg5e6]} Qe7 51. Qxd6 $3 {[%mdl 512]} Qxd6 52. Nf7+ Kh5 53. Nxd6) 50... Qf6 $14 {[%emt 0:00:01][%cal Oe5e4]} 51. Be4 $2 {[%emt 0:00:53][%mdl 8192]} (51. Nh2 $14 Qe7 52. Ng4+ Kg7 53. h5) 51... Qe6 $1 $18 {[%emt 0:00:47]} 52. Kb3 $2 {[%emt 0:01:02]} (52. Ng5 $1 $18 {[%cal Rg5e6]} Qe7 53. Qxd6 $3 {[%mdl 512]} Qxd6 54. Nf7+ Kh5 55. Nxd6) 52... Qf6 $16 {[%emt 0:00:22]} 53. Qd5 {[%emt 0:01:06]} Nf7 {[%emt 0:00:35]} (53... Kg7 $16) 54. Qd7 $18 {[%emt 0:00:09]} Qe7 {[%emt 0:00:47]} 55. Qc6 {[%emt 0:03:09][%csl Ge4][%cal Rc6g6] 0x0.0022fb2889cfdp-1022s more active pieces.} Qf6 {[%emt 0:01:02]} 56. Qe8 {[%emt 0:00:00]} Be7 {[%emt 0:00:00]} 57. Bd5 {[%emt 0:00:00]} (57. Qd7 $142) 57... Nd6 $16 {[%emt 0:00:00]} 58. Qg8 $40 {[%emt 0:00:00][%mdl 128] White threatens Nh2 and mate. Black is in trouble.} Qf8 {[%emt 0:00:58]} (58... Nf5 $16 {was necessary.}) 59. Qxf8+ $18 {[%emt 0:00:22]} (59. Nxe5 $6 Qxg8 60. Bxg8 Nf5 $16) 59... Bxf8 {[%emt 0:00:01]} 60. Nxe5 {[%emt 0:00:01][%mdl 4096] Endgame KBN-KBN} Be7 {[%emt 0:00:25]} 61. Be4 {[%emt 0:00:42]} (61. Nd7 $18 Bd8 62. Be6) 61... Bf6 $2 {[%emt 0:01:04][%mdl 8192]} (61... Bd8 $16 62. Kc2 (62. Bxg6 Bf6 $16) 62... Bc7) 62. Nd7 $2 {[%emt 0:00:26]} (62. Ng4+ $18 Kg7 63. Nxf6 Kxf6 64. Kc2) 62... Bd8 $16 {[%emt 0:00:06]} 63. Nf8 {[%emt 0:00:36]} Bf6 {[%emt 0:00:49] [#]} (63... Kh5 $16 64. Nxg6 Bc7) 64. Kc2 $1 $18 {[%emt 0:00:35]} ({Stronger than} 64. Bxg6 Be7 65. Nd7 Kxg6 $11) (64. Nd7 Bd8 65. Bf3 Kg7) 64... Kh5 {[%emt 0:00:32]} (64... Kg7 $142) 65. Nxg6 {[%emt 0:00:20]} ({Much less strong is} 65. Nd7 $6 Bd8 66. Kc3 Bc7 $16) 65... Bxh4 $2 {[%emt 0:00:27]} (65... Bd8 66. Kd1 Bc7) 66. Nf4+ {[%emt 0:00:21]} Kh6 {[%emt 0:00:07]} 67. Kd1 {[%emt 0:00:30] Ke2 is the strong threat.} Bf6 $2 {[%emt 0:00:14]} (67... Nc8 {might work better.} 68. Ke2 Bf6) 68. Ke2 {[%emt 0:00:32]} Kg5 {[%emt 0:00:04]} 69. Kf3 {[%emt 0:00:42]} Kh4 {[%emt 0:00:09]} 70. Kg2 {[%emt 0:00:08]} Bd8 {[%emt 0:00:31]} 71. Ng6+ {[%emt 0:01:40]} (71. Ne6 $142 Be7 72. Nf4) 71... Kg5 {[%emt 0:00:03]} 72. Ne5 {[%emt 0:00:12]} Kf4 {[%emt 0:00:32]} 73. Ng6+ {[%emt 0:00:20]} (73. Nc6 $16 Bf6 74. Bg6) 73... Kg5 {[%emt 0:00:03]} 74. Nf8 {[%emt 0:01:02] Threatens to win with Ne6+.} Kh4 $2 {[%emt 0:01:18]} (74... Kf6 75. Kf3 Nf7) 75. Bd5 {[%emt 0:00:18]} (75. Kf3 $142 {Hoping for Ne6.} Bg5 76. Ng6+ Kh5 77. Nf4+ Kh6 78. Nd5) 75... Nf5 {[%emt 0:00:36]} 76. Be6 {[%emt 0:01:03]} Nd4 {[%emt 0:00:46] [#]} 77. Bg4 $1 {[%emt 0:00:30]} Bc7 {[%emt 0:00:49]} 78. Kf2 {[%emt 0:00:10]} Kg5 {[%emt 0:01:14]} 79. Ke3 {[%emt 0:00:07]} Kf6 {[%emt 0:00:38]} 80. Ke4 {[%emt 0:00:14]} Ke7 {[%emt 0:00:01]} 81. Nd7 {[%emt 0:00:37]} Kd6 {[%emt 0:00:14]} 82. Ne5 {[%emt 0:00:47] Strongly threatening h4.} Nb3 {[%emt 0:00:36]} (82... Ke7 $142 83. Ng6+ Kf7) 83. Nf3 {[%emt 0:00:36]} Bd8 {[%emt 0:00:05]} 84. Ne5 $2 {[%emt 0:00:25]} ({Better is} 84. h4 $18) 84... Bf6 $2 {[%emt 0:01:11][%mdl 8192]} (84... Bc7 $1 $11 85. Ng6 Bd8) 85. Ng6 {[%emt 0:00:07]} Nd2+ {[%emt 0:00:10]} 86. Kf5 {[%emt 0:00:06]} Bg7 {[%emt 0:00:01]} (86... Bc3 $142 87. Nf4 Nf1) 87. h4 {[%emt 0:00:35]} Nf1 {[%emt 0:00:04]} 88. Kg5 {[%emt 0:00:49]} Bc3 {[%emt 0:00:45]} 89. h5 {[%emt 0:00:21] And now h6 would win.} Bd2+ {[%emt 0:00:02]} 90. Kf6 {[%emt 0:00:12]} Ne3 {[%emt 0:00:22]} 91. Bh3 {[%emt 0:00:49] Black must now prevent Kg7.} Nc2 {[%emt 0:00:49]} 92. Kg7 {[%emt 0:00:14]} Ne1 {[%emt 0:00:06]} 93. Bf5 {[%emt 0:00:27]} Bc3+ {[%emt 0:00:52]} 94. Kh7 {[%emt 0:00:39]} Nf3 {[%emt 0:00:32]} 95. h6 {[%emt 0:00:27][%cal Bh5h6,Bh6h7][%mdl 32]} Bd2 {[%emt 0:00:05]} 96. Kg7 {[%emt 0:00:19]} Nd4 {[%emt 0:00:20]} 97. Bg4 {[%emt 0:00:14]} Ne6+ {[%emt 0:00:03]} 98. Bxe6 {[%emt 0:00:39] White mates.} Kxe6 {[%emt 0:00:02]} 99. h7 {[%emt 0:00:18]} Bc3+ {[%emt 0:00:04]} 100. Kg8 {[%emt 0:00:18]} Kf5 {[%emt 0:00:02]} 101. Ne7+ {[%emt 0:00:09]} Kg4 {[%emt 0:00:07]} 102. Nd5 {[%emt 0:00:06][%csl LRb6,LRc3] Weighted Error Value: White=0.41/Black=0.40} 1-0

[Event "13th Chennai Open 2022"]
[Site "Chennai"]
[Date "2022.06.23"]
[Round "7.2"]
[White "Fedorov, Alexei"]
[Black "Savchenko, Boris"]
[Result "1/2-1/2"]
[ECO "B90"]
[WhiteElo "2529"]
[BlackElo "2524"]
[Annotator "TA"]
[PlyCount "20"]
[EventDate "2022.06.19"]
[EventType "swiss"]
[EventCountry "IND"]
[SourceTitle "playchess.com"]
[Source "ChessBase"]
[SourceQuality "1"]
[TimeControl "5400+30"]

{[%evp 19,20,0,24]} 1. e4 {[%emt 1:31:00]} c5 {[%emt 0:00:03]} 2. Nf3 {[%emt 0:00:00]} d6 {[%emt 0:00:04]} 3. d4 {[%emt 0:00:00]} cxd4 {[%emt 0:00:04]} 4. Nxd4 {[%emt 0:00:00]} Nf6 {[%emt 1:32:19]} 5. Nc3 a6 {[%emt 0:00:00]} 6. Be3 {[%emt 0:00:00]} Ng4 {[%emt 0:00:00]} 7. Bc1 {[%emt 0:00:00] [#]} Nf6 $146 {[%emt 0:01:30]} ({Predecessor:} 7... Nc6 8. Be2 Qb6 9. Bxg4 Qxd4 10. Qe2 Ne5 11. Bxc8 Rxc8 12. O-O e6 13. Rd1 Qc4 14. Qxc4 Rxc4 15. a4 Be7 16. f3 g5 17. Be3 {1-0 (63) Dominguez Perez,L (2758)-Duda,J (2738) chess24.com INT 2021}) 8. Be3 Ng4 {[%emt 0:00:00]} 9. Bc1 {[%emt 0:00:00]} Nf6 {[%emt 0:01:00]} 10. Be3 {[%emt 0:00:00]} Ng4 {[%emt 0:00:00] Recently 10...Nbd7 got a lot of attention.} 1/2-1/2

[Event "13th Chennai Open 2022"]
[Site "Chennai"]
[Date "2022.06.23"]
[Round "7.3"]
[White "Abdyjapar, Asyl"]
[Black "Tran, Tuan Minh"]
[Result "1/2-1/2"]
[ECO "A45"]
[WhiteElo "2346"]
[BlackElo "2533"]
[Annotator "TA"]
[PlyCount "134"]
[EventDate "2022.06.19"]
[EventType "swiss"]
[EventCountry "IND"]
[SourceTitle "playchess.com"]
[Source "ChessBase"]
[SourceQuality "1"]
[TimeControl "5400+30"]

{[%evp 9,134,0,0,0,0,0,0,0,2,0,37,37,132,11,117,102,108,85,113,148,344,209,291,322,309,322,322,310,317,312,306,318,289,322,308,307,302,247,243,236,213,210,210,198,229,226,233,237,249,247,229,195,233,244,247,264,277,275,277,266,261,264,262,189,190,194,200,165,163,165,185,198,197,180,270,253,279,277,229,184,245,248,225,210,277,0,0,0,0,0,27,27,595,593,578,566,668,641,534,468,1556,1391,1231,1153,2359,1768,29975,29976,29976,29977,29977,29978,29978,29979,29979,29980,5098,0,8,80,390,0,0,0,0,0,0]} 1. d4 {[%emt 0:10:10]} Nf6 {[%emt 0:01:41]} 2. Bf4 {[%emt 0:05:47]} c5 {[%emt 0:00:27]} 3. d5 {[%emt 0:00:16]} Qb6 {[%emt 0:00:31]} 4. Nc3 {[%emt 0:00:06]} g6 {[%emt 0:03:12]} 5. e4 {[%emt 0:00:07]} Nxe4 {[%emt 0:07:14]} 6. Nxe4 {[%emt 0:13:09] A45: Trompowsky Attack.} Qb4+ {[%emt 0:02:48]} 7. Qd2 {[%emt 0:03:05]} Qxe4+ {[%emt 0:00:06] [#]} 8. Ne2 $146 {[%emt 0:02:50]} ({Predecessor:} 8. Be2 Bg7 9. c3 d6 10. Nf3 Bf5 11. Rc1 Qa4 12. b3 Qa5 13. O-O O-O 14. Rfe1 {1-0 (52) Tisaj,D (2239)-Solmajer,L (2054) Portoroz 2020}) 8... Bg7 {[%emt 0:01:17]} 9. O-O-O {[%emt 0:00:24]} Na6 {[%emt 0:06:15]} 10. d6 {[%emt 0:04:34][%cal Bd5d6,Bd6e7][%mdl 32]} O-O {[%emt 0:28:11]} ({Black should play} 10... e6 $1 $14) 11. a3 {[%emt 0:09:03]} (11. Nc3 $16 Bxc3 12. bxc3) 11... b5 {[%emt 0:04:50]} (11... e6 $11 {keeps the balance.}) 12. Ng3 $36 {[%emt 0:07:12][%mdl 2048] White has strong initiative.} Qe6 {[%emt 0:05:16]} 13. dxe7 {[%emt 0:03:53]} Re8 {[%emt 0:03:03]} 14. Bxb5 {[%emt 0:02:35] Threatens to win with c3. White is more active.} c4 $2 {[%emt 0:06:48]} (14... Qb6 $16 {is a better defense.} 15. a4 (15. Qe2 Qf6 $17) 15... Rxe7) 15. Qd6 {[%emt 0:08:43] Rhe1 is the strong threat.} ({Stronger than} 15. Bxd7 c3 16. Bxe6 (16. bxc3 $2 Qa2 $19) 16... cxd2+ 17. Rxd2 Bxe6 $17) 15... c3 {[%emt 0:02:00][%cal Oe6a2] ( -> ...Qa2!)} 16. b3 {[%emt 0:00:44]} Rxe7 {[%emt 0:03:32]} 17. Bc4 {[%emt 0:00:34]} Qxd6 {[%emt 0:04:40]} 18. Bxd6 {[%emt 0:00:07]} ({Weaker is} 18. Rxd6 Nc7 $14) 18... Re6 {[%emt 0:00:15]} 19. Bxe6 {[%emt 0:01:08]} dxe6 {[%emt 0:00:42]} 20. f3 {[%emt 0:02:17]} Bb7 {[%emt 0:00:25]} 21. Rhe1 {[%emt 0:00:48]} Rc8 {[%emt 0:00:26]} 22. Be5 {[%emt 0:01:15]} Bh6+ {[%emt 0:03:54]} 23. Kb1 {[%emt 0:00:05] Strongly threatening Ne4.} Bd2 {[%emt 0:00:56]} 24. Re2 {[%emt 0:00:48] aiming for Ne4.} Nc5 {[%emt 0:00:05]} 25. Rexd2 {[%emt 0:00:54]} cxd2 {[%emt 0:00:05]} 26. Rxd2 {[%emt 0:00:04]} Bd5 {[%emt 0:03:32]} 27. Kb2 {[%emt 0:00:56]} Nd7 {[%emt 0:00:07]} 28. Bd4 {[%emt 0:00:17]} a6 {[%emt 0:00:02]} 29. c4 {[%emt 0:03:59]} Bc6 {[%emt 0:00:02]} 30. Ne2 {[%emt 0:00:22]} e5 {[%emt 0:00:39]} 31. Be3 {[%emt 0:00:49]} f5 {[%emt 0:00:24]} 32. Nc3 {[%emt 0:00:07]} Kf7 {[%emt 0:00:03]} 33. b4 {[%emt 0:00:19]} f4 {[%emt 0:01:53]} 34. Bf2 {[%emt 0:00:23]} Ke6 {[%emt 0:00:07]} 35. Kb3 {[%emt 0:01:49]} g5 {[%emt 0:00:11]} 36. b5 {[%emt 0:00:44]} axb5 {[%emt 0:01:19]} 37. cxb5 {[%emt 0:00:07]} Ba8 {[%emt 0:00:02]} 38. Ne4 {[%emt 0:04:20]} Bd5+ {[%emt 0:02:20]} 39. Kb2 {[%emt 0:00:48]} h6 {[%emt 0:03:18]} 40. a4 {[%emt 0:02:38]} g4 {[%emt 0:03:19]} 41. Rc2 {[%emt 0:01:33]} Ra8 {[%emt 0:00:45]} (41... Rc4 $142) 42. Ka3 $18 {[%emt 0:00:34]} gxf3 {[%emt 0:01:24]} 43. gxf3 {[%emt 0:00:03]} Nf6 {[%emt 0:00:11]} 44. Nd2 {[%emt 0:02:36]} Rg8 {[%emt 0:00:11]} (44... Rb8 $142 45. Be1 Ba8) 45. a5 {[%emt 0:02:14] Black must now prevent a6.} Rg2 {[%emt 0:00:12]} 46. Nb3 $1 {[%emt 0:00:40]} Bxf3 {[%emt 0:01:00] [#]} 47. b6 $2 {[%emt 0:00:17]} (47. Nc5+ $1 $18 Kf5 48. b6) 47... Nd7 $11 {[%emt 0:01:12]} (47... Rxh2 48. a6 Rh3 49. Nc5+ Kf5 50. Kb2 $18) 48. Kb4 {[%emt 0:01:25]} Rxh2 {[%emt 0:00:18]} 49. Rd2 {[%emt 0:01:15]} Bd5 {[%emt 0:01:19]} (49... Bb7 $5 {[%cal Rb7a6]}) 50. a6 {[%emt 0:01:02]} Rxf2 $2 {[%emt 0:01:17][%mdl 8192]} 51. Rxf2 $18 {[%emt 0:00:30] And now Nc5+ would win.} Nxb6 $11 {[%emt 0:00:07][%mdl 4096] Endgame KRN-KBN} 52. Rh2 {[%emt 0:00:37]} Na8 {[%emt 0:01:24]} 53. Rxh6+ {[%emt 0:00:07]} Kf5 {[%emt 0:00:06]} 54. Nd2 {[%emt 0:01:02]} Bg2 {[%emt 0:00:35]} (54... Nc7 $142 55. a7 e4 56. Rh5+ Ke6) 55. Rh8 $18 {[%emt 0:00:46]} Nc7 {[%emt 0:00:28]} 56. a7 {[%emt 0:00:12]} e4 {[%emt 0:01:32]} 57. Rf8+ {[%emt 0:01:14]} Kg4 {[%emt 0:00:25]} 58. Rg8+ {[%emt 0:01:38]} Kh3 {[%emt 0:00:01] [#]} 59. Rxg2 $1 {[%emt 0:00:38][%mdl 512]} Kxg2 {[%emt 0:00:08]} 60. Nxe4 {[%emt 0:00:03] KN-KN} Kf3 {[%emt 0:00:24] [#]} 61. Nf6 $1 {[%emt 0:00:02]} Ke3 {[%emt 0:00:42]} 62. Kc5 {[%emt 0:00:10]} f3 {[%emt 0:00:16]} 63. Nd5+ $2 {[%emt 0:01:15]} (63. Ng4+ $18 Kf4 64. Nh2) 63... Nxd5 $1 $11 {[%emt 0:00:46]} 64. a8=Q {[%emt 0:00:08]} f2 {[%emt 0:00:01]} 65. Qa6 $2 {[%emt 0:01:38]} ({And not} 65. Qxd5 f1=Q $11) ({White must play} 65. Qa3+ $18 Ke4 66. Qa4+ Kf3 67. Qd1+ Kg3 68. Kd4) 65... Nc3 {[%emt 0:00:42] The position is equal.} 66. Qf1 {[%emt 0:00:28] Hoping for Kc4.} Ne4+ {[%emt 0:00:01]} 67. Kd5 {[%emt 0:00:08]} Ng3 {[%emt 0:00:26] Weighted Error Value: White=0.18 (very precise) /Black=0.43} 1/2-1/2

[Event "13th Chennai Open 2022"]
[Site "Chennai"]
[Date "2022.06.23"]
[Round "7.4"]
[White "Konguvel, Ponnuswamy"]
[Black "Aronyak Ghosh"]
[Result "1/2-1/2"]
[ECO "B17"]
[WhiteElo "2331"]
[BlackElo "2494"]
[Annotator "TA"]
[PlyCount "88"]
[EventDate "2022.06.19"]
[EventType "swiss"]
[EventCountry "IND"]
[SourceTitle "playchess.com"]
[Source "ChessBase"]
[SourceQuality "1"]
[TimeControl "5400+30"]

{[%evp 21,88,47,46,27,38,31,25,12,11,10,29,0,0,0,0,0,0,0,0,0,0,0,0,0,0,0,0,0,0,0,4,8,3,0,0,0,0,-8,-8,-8,-8,-8,-8,-8,-8,-13,-8,-15,-15,-15,-15,-20,-15,-15,-15,-29,-7,-7,0,-6,-6,-6,-6,-6,0,-6,0,-6,0]} 1. e4 {[%emt 0:00:03]} c6 {[%emt 0:05:42]} 2. d4 {[%emt 0:00:19]} d5 {[%emt 0:00:10]} 3. Nc3 {[%emt 0:00:12][%cal Bb1c3,Bc3e4,Be4g5][%mdl 32]} dxe4 {[%emt 0:00:33]} 4. Nxe4 {[%emt 0:00:06]} Nd7 {[%emt 0:00:35]} 5. Ng5 {[%emt 0:00:36]} Ngf6 {[%emt 0:00:37]} 6. Bd3 {[%emt 0:00:40]} e6 {[%emt 0:00:22]} 7. N1f3 {[%emt 0:01:06]} Bd6 {[%emt 0:00:17]} 8. Qe2 {[%emt 0:00:27]} h6 {[%emt 0:00:11]} 9. Ne4 {[%emt 0:00:20]} Nxe4 {[%emt 0:00:09]} 10. Qxe4 {[%emt 0:00:11]} Nf6 {[%emt 0:00:08]} 11. Qe2 {[%emt 0:00:29]} Qb6 {[%emt 0:00:12]} 12. O-O {[%emt 0:10:29] B17: Caro-Kann: Modern Line (4...Nd7).} O-O {[%emt 0:00:08]} 13. c4 {[%emt 0:04:41] [#] Threatens to win with c5.} c5 {[%emt 0:03:02]} 14. Be3 {[%emt 0:12:06] White has an edge.} Qc7 {[%emt 0:09:59]} 15. dxc5 {[%emt 0:12:47]} Bxc5 {[%emt 0:00:09]} 16. Bd2 {[%emt 0:01:05] [#]} a5 $146 {[%emt 0:17:02]} ({Predecessor:} 16... Bd6 17. Bc3 Ng4 18. Nd4 Bxh2+ 19. Kh1 Bg1 20. Nf3 Bxf2 21. Ne5 Qc5 22. Qxg4 f5 {1-0 (41) Adla,D (2455)-Slipak,S (2405) Buenos Aires 1993}) 17. Bc3 {[%emt 0:01:48]} b6 {[%emt 0:02:36]} 18. Ne5 {[%emt 0:23:34]} Bb7 {[%emt 0:02:38]} 19. Rad1 {[%emt 0:00:48]} Rfd8 {[%emt 0:09:57]} 20. Bc2 {[%emt 0:02:36]} Bb4 {[%emt 0:03:48]} 21. Bd4 {[%emt 0:00:26]} Bc5 {[%emt 0:00:35]} 22. Bc3 {[%emt 0:00:04]} Rxd1 {[%emt 0:04:30]} 23. Rxd1 {[%emt 0:00:04]} Rd8 {[%emt 0:00:02]} 24. a3 {[%emt 0:01:25]} Rxd1+ {[%emt 0:01:45]} 25. Qxd1 {[%emt 0:00:11]} Ne4 {[%emt 0:01:49]} 26. Bxe4 {[%emt 0:01:41]} Bxe4 {[%emt 0:00:06]} 27. Qd7 {[%emt 0:00:20]} Qxd7 {[%emt 0:03:57]} 28. Nxd7 {[%emt 0:00:06]} a4 {[%emt 0:00:23]} 29. Nxc5 {[%emt 0:00:27]} bxc5 $11 {[%emt 0:00:05][%mdl 4096] Endgame KB-KB} 30. Be5 {[%emt 0:00:33]} Bd3 {[%emt 0:00:25]} 31. Bd6 {[%emt 0:00:05]} Bxc4 {[%emt 0:00:02]} 32. Bxc5 {[%emt 0:00:06]} g5 {[%emt 0:00:06]} 33. f3 {[%emt 0:01:38]} f6 {[%emt 0:00:26]} 34. Kf2 {[%emt 0:00:15]} Kf7 {[%emt 0:00:04]} 35. Ke3 {[%emt 0:00:04]} e5 {[%emt 0:00:04]} 36. g3 {[%emt 0:00:09]} Ke6 {[%emt 0:00:32]} 37. Bf8 {[%emt 0:03:09]} h5 {[%emt 0:00:34]} 38. h4 {[%emt 0:00:06]} Kf5 {[%emt 0:00:25]} 39. Be7 {[%emt 0:00:27] The position is equal.} Ke6 {[%emt 0:00:36]} 40. Bd8 {[%emt 0:00:05]} gxh4 {[%emt 0:00:07]} 41. gxh4 {[%emt 0:00:05]} Kf5 {[%emt 0:00:08]} 42. Be7 {[%emt 0:00:13]} Ke6 {[%emt 0:00:14]} 43. Bd8 {[%emt 0:00:05]} Kf5 {[%emt 0:00:02]} 44. Be7 {[%emt 0:00:04]} Ke6 {[%emt 0:00:02] Weighted Error Value: White=0.03 (flawless) /Black=0.02 (flawless)} 1/2-1/2